[Event "Mongolian Championship Open 2022"]
[Site "Chingis Khentii"]
[Date "2022.05.22"]
[Round "10.1"]
[White "Gundavaa, Bayarsaikhan"]
[Black "Bilguun, Sumiya"]
[Result "1-0"]
[ECO "B54"]
[WhiteElo "2495"]
[BlackElo "2454"]
[Annotator "TA"]
[PlyCount "117"]
[EventDate "2022.05.12"]
[EventType "tourn"]
[EventCountry "MGL"]
[SourceTitle "playchess.com"]
[Source "ChessBase"]
[SourceQuality "1"]
[TimeControl "40/5400+30:1800+30"]

{[%evp 13,117,52,72,65,67,38,48,54,46,48,56,52,44,54,69,72,128,76,98,95,153,161,158,160,163,162,164,158,173,172,161,166,326,179,187,185,280,261,277,285,264,214,256,233,272,270,265,270,270,253,249,277,340,350,377,379,384,360,348,345,583,582,552,377,377,339,1272,1265,1278,1271,1257,1256,1274,1256,1259,1238,1243,1224,1026,1030,1155,1167,1169,860,1046,1055,802,732,752,740,734,720,676,564,909,927,5197,2326,5085,1775,29982,29983,29983,29984,29982,3335]} 1. e4 {[%emt 0:00:04]} c5 {[%emt 0:00:11]} 2. Nf3 {[%emt 0:00:12]} e6 {[%emt 0:00:08]} 3. d4 {[%emt 0:00:06]} cxd4 {[%emt 0:00:05]} 4. Nxd4 {[%emt 0:00:05]} a6 {[%emt 0:00:10]} 5. Bd3 {[%emt 0:00:17]} g6 {[%emt 0:03:21]} 6. Be3 {[%emt 0:00:26]} Bg7 {[%emt 0:00:15]} 7. Nc3 {[%emt 0:00:05]} d6 {[%emt 0:01:08]} 8. Qd2 {[%emt 0:01:23] White is more active. B54: Sicilian: 2...d6 3 d4 cxd4 4 Nxd4, Unusual Lines .} Nf6 {[%emt 0:02:32]} 9. Bh6 {[%emt 0:02:23]} Bxh6 {[%emt 0:03:25]} 10. Qxh6 {[%emt 0:00:22] White is slightly better.} e5 {[%emt 0:01:02]} 11. Nb3 {[%emt 0:04:26]} Be6 {[%emt 0:01:44] [#]} 12. O-O-O $146 {[%emt 0:13:41]} ({Predecessor:} 12. O-O Nc6 13. Rad1 Ng4 14. Qd2 Qh4 15. h3 Nf6 16. f4 O-O 17. fxe5 dxe5 18. Nc5 {½-½ (99) Guliyev,N (2545)-Bilguun,S (2490) Paris 2018}) 12... Nc6 {[%emt 0:01:58]} 13. Be2 {[%emt 0:05:57]} Qe7 {[%emt 0:15:28]} 14. Kb1 {[%emt 0:02:31] White now steadily converts the win.} Rc8 {[%emt 0:15:51]} (14... O-O-O $142) 15. Rd2 {[%emt 0:02:51]} ({White should try} 15. Nd5 Bxd5 16. exd5) 15... Bxb3 {[%emt 0:06:13]} 16. axb3 {[%emt 0:00:18]} Nd4 {[%emt 0:00:38]} (16... b5 $142) 17. Bc4 $1 $16 {[%emt 0:03:10]} Ne6 {[%emt 0:18:59]} 18. Rhd1 {[%emt 0:07:12]} Rd8 {[%emt 0:00:11]} 19. f3 {[%emt 0:09:46][%cal Bf2f3,Bf3f4,Bf4f5][%mdl 32] Inhibits Ng4.} Rd7 {[%emt 0:09:47]} 20. g3 {[%emt 0:00:41]} Nd4 {[%emt 0:04:27]} 21. f4 {[%emt 0:04:58]} Ng4 {[%emt 0:05:41]} 22. Qh3 {[%emt 0:00:35]} ({Resist} 22. Qg7 $6 Qf8 23. Qxf8+ Kxf8 $14) 22... Nf6 {[%emt 0:01:52]} (22... h5 23. Nd5 Qd8) 23. Nd5 {[%emt 0:17:34]} (23. Rf1 $142) 23... Nxd5 $18 {[%emt 0:00:05]} 24. Bxd5 {[%emt 0:00:05]} ({Stronger than} 24. exd5 b5 25. Bf1 Rd8 $11) 24... O-O {[%emt 0:00:45]} (24... Kd8 {was called for.} 25. Rf2 Ne6) 25. c3 {[%emt 0:00:07]} Nc6 {[%emt 0:01:54] [#]} 26. f5 {[%emt 0:06:02]} Rc7 {[%emt 0:00:17]} 27. Bc4 {[%emt 0:02:59] aiming for fxg6.} Rd8 {[%emt 0:01:20]} 28. Qh6 {[%emt 0:00:59] Strongly threatening fxg6.} Qf6 {[%emt 0:01:30]} 29. g4 {[%emt 0:00:05]} Qg7 {[%emt 0:01:37]} 30. Qxg7+ {[%emt 0:01:12]} Kxg7 {[%emt 0:00:01]} 31. Rxd6 {[%emt 0:00:08]} Rxd6 {[%emt 0:00:31]} 32. Rxd6 {[%emt 0:00:05][%mdl 4096] Endgame KRB-KRN} g5 {[%emt 0:01:35]} 33. Bd5 {[%emt 0:00:20]} Nb8 {[%emt 0:01:19]} 34. Rb6 {[%emt 0:01:00]} Nd7 {[%emt 0:00:35]} 35. Rxb7 {[%emt 0:05:00]} Rxb7 {[%emt 0:00:04]} 36. Bxb7 {[%emt 0:00:05] KB-KN} a5 $2 {[%emt 0:00:01]} (36... Nc5) 37. Kc2 {[%emt 0:02:14]} Kf8 {[%emt 0:00:44]} 38. h3 {[%emt 0:05:31] Hoping for c4.} Ke7 {[%emt 0:00:30]} 39. Bd5 {[%emt 0:00:36]} f6 $2 {[%emt 0:00:29]} (39... Nf6 40. Kd2 h5 41. gxh5 Nxh5) 40. Kd3 {[%emt 0:00:00]} Nb6 {[%emt 0:00:00]} 41. Be6 {[%emt 0:09:07]} Kd6 {[%emt 0:00:53]} 42. Kc2 {[%emt 0:03:31]} Kc5 {[%emt 0:00:18]} 43. Kb1 {[%emt 0:00:03]} Kb5 {[%emt 0:10:21]} 44. Ka2 {[%emt 0:00:08]} Kc6 {[%emt 0:02:15]} 45. Ka3 {[%emt 0:00:09]} Kc5 {[%emt 0:00:04]} 46. Bc4 {[%emt 0:00:21]} Nd7 {[%emt 0:04:56]} 47. Bd3 {[%emt 0:01:51]} Nb6 {[%emt 0:00:07]} 48. Be2 {[%emt 0:01:32]} Nd7 {[%emt 0:01:54]} 49. Ka4 {[%emt 0:02:32]} Kb6 {[%emt 0:00:05]} 50. b4 {[%emt 0:00:11]} axb4 {[%emt 0:00:04]} 51. Kxb4 {[%emt 0:00:02]} Nc5 {[%emt 0:00:06]} 52. Kc4 {[%emt 0:00:43]} Nxe4 {[%emt 0:00:08]} 53. Kd5 {[%emt 0:00:05]} Ng3 {[%emt 0:00:03]} 54. Bd3 {[%emt 0:01:26]} h5 {[%emt 0:01:42]} 55. c4 {[%emt 0:01:00][%cal Bc3c4,Bc4c5][%mdl 32]} Kc7 {[%emt 0:01:14]} 56. b4 {[%emt 0:01:57]} (56. c5 $142 hxg4 57. hxg4) 56... h4 {[%emt 0:00:09]} 57. c5 {[%emt 0:00:43] White mates.} e4 {[%emt 0:00:37]} 58. Bxe4 {[%emt 0:01:24]} Ne2 {[%emt 0:00:04]} 59. Ke6 {[%emt 0:00:37] Weighted Error Value: White=0.16 (very precise) /Black=0.29 (precise)} (59. Kc4 $142 Kb8 60. b5 Ka7 61. b6+ Ka6 62. Kd5 Ng3 {[#]} 63. Kc6 $1 Ka5 64. b7) 1-0

[Event "Mongolian Championship Open 2022"]
[Site "Chingis Khentii"]
[Date "2022.05.22"]
[Round "10.2"]
[White "Gan-Erdene, Sugar"]
[Black "Agibileg, Uurtsaikh"]
[Result "1-0"]
[ECO "B48"]
[WhiteElo "2419"]
[BlackElo "2440"]
[Annotator "TA"]
[PlyCount "89"]
[EventDate "2022.05.12"]
[EventType "tourn"]
[EventCountry "MGL"]
[SourceTitle "playchess.com"]
[Source "ChessBase"]
[SourceQuality "1"]
[TimeControl "40/5400+30:1800+30"]

{[%evp 11,89,22,32,27,20,19,40,29,78,85,87,81,91,86,122,113,114,125,130,129,147,129,129,130,129,122,129,124,135,96,337,295,292,269,340,225,234,235,236,230,219,202,208,204,202,191,822,812,805,787,781,606,760,737,921,718,723,712,705,693,696,695,789,775,791,742,929,739,1050,1050,1008,991,1024,889,1344,1362,1999,1856,1798,1740]} 1. e4 {[%emt 0:00:03]} c5 {[%emt 0:00:15]} 2. Nf3 {[%emt 0:00:08]} e6 {[%emt 0:00:08]} 3. d4 {[%emt 0:00:06]} cxd4 {[%emt 0:00:05]} 4. Nxd4 {[%emt 0:00:05]} Nc6 {[%emt 0:00:19]} 5. Nc3 {[%emt 0:00:08]} Qc7 {[%emt 0:00:08]} 6. Be3 {[%emt 0:00:12]} a6 {[%emt 0:00:09]} 7. Qf3 {[%emt 0:00:18] B48: Sicilian: Taimanov: 5 Nc3 Qc7 6 Be3 a6 without Be2.} Nf6 {[%emt 0:00:14][%cal Of8a3]} 8. O-O-O {[%emt 0:00:26]} Rb8 {[%emt 0:00:25]} 9. Be2 {[%emt 0:01:04] White is slightly better.} Bb4 {[%emt 0:00:22]} (9... b5 $11) 10. e5 $16 {[%emt 0:00:55]} Nxe5 {[%emt 0:00:35]} 11. Qg3 {[%emt 0:00:43] Strongly threatening Bf4.} O-O {[%emt 0:00:09]} 12. Bh6 $1 {[%emt 0:00:46][%csl Gh6][%cal Rg3g7][%mdl 1024] White has strong compensation.} g6 {[%emt 0:00:13] [#]} 13. Qh4 $146 {[%emt 0:00:33]} ({Predecessor:} 13. Bxf8 Bxf8 14. Rhe1 d6 15. f4 Nc6 16. Nb3 d5 17. Qe3 b5 18. g4 Bg7 19. f5 {0-1 (32) Perez Ponsa,F (2559)-Andreikin,D (2726) Chess.com INT 2020}) 13... Be7 {[%emt 0:12:23]} 14. Bg5 $1 {[%emt 0:03:23]} ({Don't do} 14. Bxf8 Kxf8 15. Kb1 b5 $11) 14... Qd8 {[%emt 0:01:49]} 15. Ne4 $1 $40 {[%emt 0:49:52][%cal Re4f6][%mdl 128] White has strong attack.} Nd5 {[%emt 0:04:33] [#]} 16. Nxe6 $1 {[%emt 0:10:09][%mdl 512]} fxe6 {[%emt 0:06:06] [#]} (16... dxe6 $2 {[#]} 17. Rxd5 $1 {[%mdl 512]} Bxg5+ 18. Nxg5 Qxg5+ 19. Qxg5 $18) 17. Rxd5 $1 {[%emt 0:00:09][%mdl 512]} Nc6 {[%emt 0:02:20]} (17... exd5 $2 18. Bxe7 Qb6 19. Bxf8 dxe4 20. Bh6 $18) 18. Rd6 {[%emt 0:05:27][%cal Od6c6] aiming for Rxc6! White is much more active.} Bxg5+ {[%emt 0:13:17]} 19. Nxg5 {[%emt 0:00:08][%csl Gg5][%cal Rh4h7]} Qe7 {[%emt 0:00:30] Hoping for ...Rf5.} 20. Qg3 {[%emt 0:09:29]} e5 $2 {[%emt 0:09:18]} (20... Qf6 $16) 21. Bc4+ {[%emt 0:04:52]} Kh8 {[%emt 0:00:23]} 22. Rhd1 {[%emt 0:08:57]} Rf4 {[%emt 0:06:47] Prevents Bf7.} 23. Be2 {[%emt 0:01:39]} Nd4 {[%emt 0:02:15] [#]} 24. R6xd4 {[%emt 0:01:07][%mdl 512]} Rxd4 {[%emt 0:00:14]} 25. Rxd4 {[%emt 0:00:04]} exd4 {[%emt 0:00:07]} 26. Qxb8 {[%emt 0:00:19]} Qxg5+ $18 {[%emt 0:00:30][%mdl 4096] Endgame KQB-KQB} 27. Kd1 {[%emt 0:01:26]} Qc5 {[%emt 0:00:18]} 28. b4 {[%emt 0:01:04]} Qf8 {[%emt 0:05:19]} (28... Qc3) 29. Qe5+ {[%emt 0:00:29] White is clearly winning.} Qg7 {[%emt 0:00:05]} 30. Qc5 {[%emt 0:00:31]} Qg8 {[%emt 0:00:38]} 31. Qxd4+ {[%emt 0:00:37]} Qg7 {[%emt 0:00:06]} 32. Qc5 {[%emt 0:00:06]} Qa1+ {[%emt 0:00:11]} 33. Kd2 {[%emt 0:00:07][%cal Rc5f8]} Kg7 {[%emt 0:00:06] Against Qf8+} 34. Qxc8 {[%emt 0:00:32]} Qd4+ {[%emt 0:00:07]} 35. Bd3 {[%emt 0:00:16]} Qxf2+ {[%emt 0:00:09]} 36. Kc3 {[%emt 0:00:10]} Qe1+ {[%emt 0:00:09]} 37. Kb3 {[%emt 0:00:37]} Qb1+ {[%emt 0:00:16]} 38. Ka3 {[%emt 0:00:13]} Qc1+ {[%emt 0:00:21]} 39. Ka4 {[%emt 0:00:23]} Qb2 {[%emt 0:00:36]} 40. Qxd7+ {[%emt 0:00:00]} Kh6 {[%emt 0:00:00]} 41. Qd5 {[%emt 0:01:43]} Qb1 {[%emt 0:02:41]} 42. Ka5 {[%emt 0:02:31] Black must now prevent Qc4.} Qb2 {[%emt 0:00:11]} 43. a4 {[%emt 0:03:39]} Qg7 {[%emt 0:00:06]} 44. Kb6 {[%emt 0:01:00]} Qe7 {[%emt 0:00:46]} 45. b5 {[%emt 0:00:44] Black did not feel at home in the position after the opening.  Weighted Error Value: White=0.08 (flawless) /Black=0.38} 1-0

[Event "Mongolian Championship Open 2022"]
[Site "Chingis Khentii"]
[Date "2022.05.22"]
[Round "10.3"]
[White "Batchuluun, Tsegmed"]
[Black "Battulga, Namkhai"]
[Result "1-0"]
[ECO "D15"]
[WhiteElo "2536"]
[BlackElo "2402"]
[Annotator "TA"]
[PlyCount "59"]
[EventDate "2022.05.12"]
[EventType "tourn"]
[EventCountry "MGL"]
[SourceTitle "playchess.com"]
[Source "ChessBase"]
[SourceQuality "1"]
[TimeControl "40/5400+30:1800+30"]

{[%evp 10,59,32,30,38,25,30,29,48,47,64,66,62,68,69,64,67,55,37,33,64,75,91,104,143,137,106,107,437,443,439,429,447,186,626,164,169,144,845,586,548,571,580,558,1181,572,1658,1649,1912,1822,2184,2152]} 1. d4 {[%emt 0:00:03]} d5 {[%emt 0:00:09]} 2. c4 {[%emt 0:00:05]} c6 {[%emt 0:00:02]} 3. Nf3 {[%emt 0:00:40]} Nf6 {[%emt 0:00:03]} 4. Nc3 {[%emt 0:00:10]} a6 {[%emt 0:00:13]} 5. c5 {[%emt 0:00:10]} Bf5 {[%emt 0:00:28]} 6. Qb3 {[%emt 0:00:07]} Ra7 {[%emt 0:00:05] D15: Slav Defence: 4 Nc3 a6 and gambit lines after 4 Nc3 dxc4.} 7. Bf4 {[%emt 0:00:06]} Nbd7 {[%emt 0:00:04]} 8. h3 {[%emt 0:00:11] 8.e3 gains popularity.} g6 {[%emt 0:00:11] White has an edge.} 9. e3 {[%emt 0:00:14]} Bg7 {[%emt 0:00:02]} 10. Nd2 {[%emt 0:00:40]} O-O {[%emt 0:03:54][%cal Oe7e5]} 11. g4 {[%emt 0:00:08]} Be6 {[%emt 0:00:15][%cal Od7c5] [#]} 12. Na4 $146 {[%emt 0:00:06]} ({Predecessor:} 12. Qc2 b6 13. b4 bxc5 14. bxc5 Ne4 15. Nb3 f5 16. f3 Nxc3 17. Qxc3 Bf7 18. gxf5 {0-1 (45) Kantor,G (2527)-Balog,I (2578) Ajka 2021}) 12... Ne4 {[%emt 0:00:53]} 13. Rd1 {[%emt 0:00:07]} f5 {[%emt 0:00:28]} 14. f3 $36 {[%emt 0:23:23][%mdl 2048] White has the initiative.} Nxd2 {[%emt 0:00:28]} 15. Rxd2 {[%emt 0:00:05]} Qa5 {[%emt 0:06:55]} 16. Kd1 {[%emt 0:07:01]} h6 {[%emt 0:07:09]} 17. Nb6 {[%emt 0:09:10]} fxg4 {[%emt 0:00:11]} 18. hxg4 {[%emt 0:16:05] aiming for Bd3.} g5 $2 {[%emt 0:00:12][%mdl 8192]} (18... Nxb6 $16 {is a better chance.} 19. cxb6 (19. Qxb6 Qxb6 20. cxb6 Raa8 $14) 19... Raa8) 19. Bc7 $1 $18 {[%emt 0:14:20]} (19. Nxd7 Bxd7 20. Be5 (20. Qb6 Qxb6 21. cxb6 Raa8 $19) 20... Rxf3 $15) 19... Rxf3 {[%emt 0:00:57]} 20. Be2 $1 {[%emt 0:02:18]} ({Worse is} 20. Nxd5 Qxc7 21. Nxc7 Bxb3+ 22. axb3 b5 $15) 20... Rf2 {[%emt 0:10:38]} 21. Rg1 {[%emt 0:03:32] Active counter play!} ({Less strong is} 21. Nxd5 Qxc7 22. Nxc7 Bxb3+ 23. axb3 b5 24. cxb6 Nxb6 $14) (21. a4 $142 Nf6 22. Na8 $1) 21... Kh8 $2 {[%emt 0:41:04] [#]} (21... Nxb6 $2 22. Bxb6 Qxd2+ 23. Kxd2 $18) (21... Rxe2 22. Rxe2 (22. Kxe2 Qb5+ 23. Qxb5 axb5 $16) 22... Qb5) 22. Rc2 $2 {[%emt 0:02:01]} (22. a4 $1) 22... Rxe2 {[%emt 0:04:05]} 23. Rxe2 {[%emt 0:00:31]} Nf6 $2 {[%emt 0:04:28][%mdl 8192] Loses the game.} (23... Qb5 $16 24. Qc3 Nxb6 25. Bxb6 Ra8) 24. Bb8 {[%emt 0:01:23] White is clearly winning.} Bxg4 {[%emt 0:01:53]} 25. Rxg4 {[%emt 0:01:04]} Nxg4 {[%emt 0:00:10]} 26. Bxa7 {[%emt 0:00:04]} Bf6 {[%emt 0:02:00]} 27. Bb8 {[%emt 0:00:37] Threatens to win with a4.} h5 {[%emt 0:00:07]} 28. a4 {[%emt 0:03:55] Against Qb5} e5 {[%emt 0:03:22]} 29. Qa3 {[%emt 0:01:49]} exd4 {[%emt 0:01:26]} 30. exd4 {[%emt 0:01:40] Weighted Error Value: White=0.59/Black=0.58} 1-0

[Event "Mongolian Championship Open 2022"]
[Site "Chingis Khentii"]
[Date "2022.05.22"]
[Round "10.4"]
[White "Boldoo, Erdenepurev"]
[Black "Batsuren, Dambasuren"]
[Result "0-1"]
[ECO "E04"]
[WhiteElo "2371"]
[BlackElo "2501"]
[Annotator "TA"]
[PlyCount "64"]
[EventDate "2022.05.12"]
[EventType "tourn"]
[EventCountry "MGL"]
[SourceTitle "playchess.com"]
[Source "ChessBase"]
[SourceQuality "1"]
[TimeControl "40/5400+30:1800+30"]

{[%evp 13,64,0,14,0,3,15,43,2,12,0,0,22,0,14,12,-9,0,0,0,0,0,0,0,0,0,0,0,-82,-77,-85,-72,-58,-91,-99,-102,-97,-82,-95,-95,-134,-127,-111,-114,-678,-688,-683,-677,-660,-647,-1086,-1047,-1118,-880]} 1. d4 {[%emt 0:00:10]} Nf6 {[%emt 0:00:17]} 2. c4 {[%emt 0:00:06]} e6 {[%emt 0:00:09]} 3. g3 {[%emt 0:00:40]} d5 {[%emt 0:02:54][%cal Bd7d5,Bd5c4][%mdl 32]} 4. Nf3 {[%emt 0:00:22]} dxc4 {[%emt 0:02:07]} 5. Bg2 {[%emt 0:00:23]} Nc6 {[%emt 0:00:25]} 6. O-O {[%emt 0:00:17]} Rb8 {[%emt 0:00:53]} 7. e3 {[%emt 0:07:18]} b5 {[%emt 0:01:03]} 8. b3 {[%emt 0:06:43] E04: Open Catalan: 5 Nf3.} cxb3 {[%emt 0:00:57]} 9. axb3 {[%emt 0:03:24]} Bb7 {[%emt 0:09:32]} 10. Qe2 {[%emt 0:03:04][%mdl 1024] White has compensation. White is slightly better.} a6 {[%emt 0:09:56]} 11. Bd2 {[%emt 0:01:59]} Bd6 {[%emt 0:11:30]} 12. Rc1 {[%emt 0:10:13]} O-O {[%emt 0:01:45]} 13. Ne1 {[%emt 0:01:02]} Qe8 {[%emt 0:08:57]} 14. Nd3 {[%emt 0:00:14]} e5 {[%emt 0:06:02]} 15. Rxc6 {[%emt 0:11:00]} Bxc6 {[%emt 0:01:24]} 16. Bxc6 {[%emt 0:00:08]} Qxc6 {[%emt 0:00:10]} 17. dxe5 {[%emt 0:00:03]} Bxe5 {[%emt 0:00:28]} 18. Nxe5 {[%emt 0:01:36]} Qd5 {[%emt 0:00:05][%csl LRb3,LRe5]} 19. Bc3 {[%emt 0:02:18]} Ne4 {[%emt 0:06:24] [#]} 20. Bd4 $146 {[%emt 0:05:56]} (20. Qd3 $1 $11 {remains equal.} Nxc3 21. Qxc3) ({Predecessor:} 20. Qd3 Rbd8 21. Qxd5 Rxd5 22. Bd4 c5 23. Nc3 Nxc3 24. Bxc3 f6 25. Nc6 Rd3 26. Be1 Rxb3 27. Rxa6 {0-1 (56) Yuffa,D (2594)-Gelfand,B (2685) Moscow 2020}) 20... f6 $17 {[%emt 0:02:58] [#] Threatens to win with ...Ng5.} 21. Nf3 {[%emt 0:02:27]} c5 $36 {[%emt 0:01:00][%mdl 2048] Keeping White busy. Black is more active.} 22. Nc3 {[%emt 0:00:53]} Nxc3 {[%emt 0:01:15]} 23. Bxc3 {[%emt 0:00:03]} Qxb3 {[%emt 0:00:08]} 24. Be1 {[%emt 0:00:22]} Rfd8 {[%emt 0:04:40]} 25. Rxa6 {[%emt 0:00:34]} b4 {[%emt 0:04:11][%cal Bb5b4,Bb4b3][%mdl 32]} 26. Rc6 {[%emt 0:01:14]} Qd1 {[%emt 0:05:25]} 27. Qc4+ {[%emt 0:01:29]} Qd5 {[%emt 0:10:10]} 28. Nd2 {[%emt 0:08:02][%mdl 8192] Loses the game.} (28. Rxc5 $17 Qxc4 29. Rxc4) 28... Qxc4 $19 {[%emt 0:02:38] Black is clearly winning.} 29. Nxc4 {[%emt 0:00:06]} Rd1 {[%emt 0:00:04]} 30. Kf1 {[%emt 0:00:05]} b3 {[%emt 0:00:48]} 31. Rxc5 {[%emt 0:01:03]} Rc1 {[%emt 0:00:39]} 32. Ke2 {[%emt 0:00:40] [#]} Rxc4 $1 {[%emt 0:00:29][%mdl 576] Promotion.  Weighted Error Value: White=0.60/Black=0.02 (flawless)} 0-1